Workbook

Sheet Inicio
B1: INFORMACIÓN SOBRE ESTA PLANTILLA
B2: Use este libro Presupuesto del evento para realizar un seguimiento de los Gastos generados y los Ingresos obtenidos en un evento.
B3: Rellene el Nombre del evento y escriba la información en tablas en la hoja de cálculo Gastos y la hoja de cálculo Ingresos.
B4: El total de Gastos total de Ingresos totales se calculan automáticamente.
B5: El resumen y el Resumen de ganancias y pérdidas se actualizan automáticamente en la hoja de cálculo Resumen.
B6: Nota:
B7: Se facilitan instrucciones adicionales en la columna A de cada hoja de cálculo. Este texto se ha ocultado a propósito. Para eliminar el texto, seleccione la columna A y, a continuación, ELIMINAR. Para mostrar el texto, seleccione la columna A y, a continuación, cambie el color de fuente.
B8: Para obtener más información sobre las tablas, presione las teclas MAYÚS y F10 dentro de una tabla, seleccione la opción TABLA y, después, TEXTO ALTERNATIVO.

Sheet Gastos
A1: Escriba los gastos estimado y real de cada categoría en las respectivas tablas de esta hoja de cálculo. Los gastos totales se calculan automáticamente. Encontrará instrucciones útiles sobre cómo usar esta hoja de cálculo en las celdas de esta columna. Presione la flecha abajo para empezar.
A2: Escriba el nombre del evento en la celda a la derecha para personalizar el título de esta y otras hojas de cálculo. | B2: Presupuesto de evento para Nombre del evento
A3: La etiqueta Gastos se encuentra en la celda G3. | G3: Gastos
A4: La etiqueta Estimado está en la celda G4 y la etiqueta Real en la celda H4. | G4: Estimado | H4: Real
A5: La etiqueta Gastos totales se encuentra en la celda de la derecha. Los gastos estimado totales se calculan automáticamente en la celda G5. Los gastos real totales y la barra de datos donde se muestra el Total de gastos real totales se actualizan automáticamente en la celda H5. La instrucción siguiente se encuentra en la celda A7. | B5: Gastos totales | G5: =SUM(C12,C20,C26,C33,G12,G20,G25) -> 1,145.00 € | H5: =SUM(D12,D20,D26,D33,H12,H20,H25) -> 395.00 €
A7: Escriba los gastos de sitio en la tabla que comienza en la celda de la derecha y los gastos de comida en la tabla que comienza en la celda F7. La instrucción siguiente se encuentra en la celda A14. | B7: Sitio | C7: Estimado | D7: Real | F7: Aperitivos | G7: Estimado | H7: Real
B8: Gastos de sala y auditorio | C8: 500.00 € | D8: 250.00 € | F8: Comida
B9: Personal del sitio | C9: 400.00 € | D9: 50.00 € | F9: Bebidas
B10: Equipamiento | F10: Mantelería
B11: Mesas y sillas | F11: Personal y compensaciones
B12: Total | C12: =SUBTOTAL(109,GastosDeSitio[Estimado]) -> 900.00 € | D12: =SUBTOTAL(109,GastosDeSitio[Real]) -> 300.00 € | F12: Total | G12: =SUBTOTAL(109,GastosDeComida[Estimado]) -> 0.00 € | H12: =SUBTOTAL(109,GastosDeComida[Real]) -> 0.00 €
A14: Escriba los gastos de decoraciones en la tabla que comienza en la celda de la derecha y los gastos de programa en la tabla que comienza en la celda F14. La instrucción siguiente se encuentra en la celda A22. | B14: Decoraciones | C14: Estimado | D14: Real | F14: Programa | G14: Estimado | H14: Real
B15: Flores | C15: 200.00 € | D15: 50.00 € | F15: Artistas
B16: Velas | F16: Altavoces
B17: Iluminación | F17: Viaje
B18: Globos | F18: Hotel
B19: Suministros de papel | F19: Otros
B20: Total | C20: =SUBTOTAL(109,GastosDeDecoraciones[Estimado]) -> 200.00 € | D20: =SUBTOTAL(109,GastosDeDecoraciones[Real]) -> 50.00 € | F20: Total | G20: =SUBTOTAL(109,GastosDePrograma[Estimado]) -> 0.00 € | H20: =SUBTOTAL(109,GastosDePrograma[Real]) -> 0.00 €
A22: Escriba los gastos de publicidad en la tabla que comienza en la celda de la derecha y los gastos de premios en la tabla que comienza en la celda F22. La instrucción siguiente se encuentra en la celda A28. | B22: Publicidad | C22: Estimado | D22: Real | F22: Premios | G22: Estimado | H22: Real
B23: Trabajo de gráficos | C23: 45.00 € | D23: 45.00 € | F23: Cintas, placas y trofeos
B24: Fotocopias e impresión | F24: Regalos
B25: Gastos de envío | F25: Total | G25: =SUBTOTAL(109,GastosDePremios[Estimado]) -> 0.00 € | H25: =SUBTOTAL(109,GastosDePremios[Real]) -> 0.00 €
B26: Total | C26: =SUBTOTAL(109,GastosDePublicidad[Estimado]) -> 45.00 € | D26: =SUBTOTAL(109,GastosDePublicidad[Real]) -> 45.00 €
A28: Escriba los gastos de varios en la tabla que comienza en la celda de la derecha. | B28: Varios | C28: Estimado | D28: Real
B29: Teléfono
B30: Transporte
B31: Suministros de papelería
B32: Servicios de fax
B33: Total | C33: =SUBTOTAL(109,GastosDeVarios[Estimado]) -> 0.00 € | D33: =SUBTOTAL(109,GastosDeVarios[Real]) -> 0.00 €

Sheet Ingresos
A1: Escriba los ingresos estimado y real de cada categoría en las respectivas tablas de esta hoja de cálculo. Los ingresos totales se calculan de forma automática. Encontrará instrucciones útiles sobre cómo usar esta hoja de cálculo en las celdas de esta columna. Presione la flecha abajo para empezar.
A2: El nombre del evento se actualiza automáticamente en celda de la derecha. | B2: =Gastos!B2 -> Presupuesto de evento para Nombre del evento
A3: La etiqueta Ingresos se encuentra en la celda F3. | F3: Ingresos
A4: La etiqueta Estimado está en la celda F4 y la etiqueta Real en la celda G4. | F4: Estimado | G4: Real
A5: La etiqueta Ingresos totales se encuentra en la celda de la derecha. Los ingresos totai estimado se calculan automáticamente en la celda F5. Los ingresos total real y la barra de datos donde se muestra el total real se actualizan automáticamente en la celda G5. | B5: Ingresos totales | F5: =SUM(Admisiones[[#Totals],[Total estimado]],AdsInProgram[[#Totals],[Total estimado]],ExhibitorsAndVendors[[#Totals],[Total estimado]],SaleOfItem[[#Totals],[Total estimado]]) -> 1,936.00 € | G5: =SUM(Admisiones[[#Totals],[Total real]],AdsInProgram[[#Totals],[Total real]],ExhibitorsAndVendors[[#Totals],[Total real]],SaleOfItem[[#Totals],[Total real]]) -> 1,831.00 €
A6: La etiqueta Admisiones se encuentra en la celda de la derecha. | B6: Admisiones
A7: Escriba el número de admisiones estimado y real con tarifas de entradas en la tabla que comienza en la celda a la derecha. Los ingresos por admisiones estimado y real se calculan automáticamente. La instrucción siguiente se encuentra en la celda A12. | B7: Estimado | C7: Real | D7: Tipo | E7: Precio | F7: Total estimado | G7: Total real
B8: 300 | C8: 278 | D8: Adultos @ | E8: 5.00 € | F8: =B8*E8 -> 1,500.00 € | G8: =C8*E8 -> 1,390.00 €
B9: 197 | C9: 195 | D9: Niños @ | E9: 2.00 € | F9: =B9*E9 -> 394.00 € | G9: =C9*E9 -> 390.00 €
B10: 42 | C10: 51 | D10: Otros @ | E10: 1.00 € | F10: 42.00 € | G10: 51.00 €
F11: =SUBTOTAL(109,Admisiones[Total estimado]) -> 1,936.00 € | G11: =SUBTOTAL(109,Admisiones[Total real]) -> 1,831.00 €
A12: La etiqueta Anuncios en el programa se encuentra en la celda de la derecha. | B12: Anuncios de programa
A13: Escriba el número de Anuncios de programa estimado y real con tarifas de Anuncios en la tabla que comienza en la celda a la derecha. Los ingresos por anuncios estimado y real se calculan automáticamente. La instrucción siguiente se encuentra en la celda A18. | B13: Estimado | C13: Real | D13: Tipo | E13: Precio | F13: Total estimado | G13: Total real
D14: Portadas @ | F14: =B14*E14 -> 0.00 € | G14: =C14*E14 -> 0.00 €
D15: Medias páginas @ | F15: =B15*E15 -> 0.00 € | G15: =C15*E15 -> 0.00 €
D16: Cuartos de página @ | F16: 0.00 € | G16: 0.00 €
F17: =SUBTOTAL(109,AdsInProgram[Total estimado]) -> 0.00 € | G17: =SUBTOTAL(109,AdsInProgram[Total real]) -> 0.00 €
A18: La etiqueta Expositores o proveedores se encuentra en la celda a la derecha. | B18: Expositores y proveedores
A19: Escriba el número de Expositores y proveedores estimado y real con tarifas de puestos en la tabla que comienza en la celda a la derecha. Los ingresos estimados y reales se calculan automáticamente. La instrucción siguiente se encuentra en la celda A24. | B19: Estimado | C19: Real | D19: Tipo | E19: Precio | F19: Total estimado | G19: Total real
D20: Stands grandes @ | F20: =B20*E20 -> 0.00 € | G20: =C20*E20 -> 0.00 €
D21: Stands medianos @ | F21: =B21*E21 -> 0.00 € | G21: =C21*E21 -> 0.00 €
D22: Stands pequeños @ | F22: 0.00 € | G22: 0.00 €
F23: =SUBTOTAL(109,ExhibitorsAndVendors[Total estimado]) -> 0.00 € | G23: =SUBTOTAL(109,ExhibitorsAndVendors[Total real]) -> 0.00 €
A24: La etiqueta Venta de productos se encuentra en la celda de la derecha. | B24: Venta de productos
A25: Escriba el número de Ventas de productos estimadas y reales con los precios de los productos en la tabla que comienza en la celda a la derecha. Los ingresos estimados y reales se calculan automáticamente. | B25: Estimado | C25: Real | D25: Tipo | E25: Precio | F25: Total estimado | G25: Total real
D26: Artículos @ | F26: =B26*E26 -> 0.00 € | G26: =C26*E26 -> 0.00 €
D27: Artículos @ | F27: =B27*E27 -> 0.00 € | G27: =C27*E27 -> 0.00 €
D28: Artículos @ | F28: 0.00 € | G28: 0.00 €
D29: Artículos @ | F29: 0.00 € | G29: 0.00 €
F30: =SUBTOTAL(109,SaleOfItem[Total estimado]) -> 0.00 € | G30: =SUBTOTAL(109,SaleOfItem[Total real]) -> 0.00 €

Sheet Resumen
A1: El Resumen de ganancias y pérdidas que muestra el Ingresos totales y gastos se actualiza automáticamente en esta hoja de cálculo. Encontrará instrucciones útiles sobre cómo usar esta hoja de cálculo en las celdas de esta columna. Presione la flecha abajo para empezar.
A2: El nombre del evento se actualiza automáticamente en celda de la derecha. | B2: =Gastos!B2 -> Presupuesto de evento para Nombre del evento
A3: La etiqueta de Resumen de ganancias y pérdidas está en la celda C3. La instrucción siguiente se encuentra en la celda A5. | C3: Resumen de ganancias y pérdidas
A5: La tabla Total que comienza en la celda a la derecha también se actualiza automáticamente. La instrucción siguiente se encuentra en la celda A9. | B5: Total | C5: Estimado | D5: Real
B6: Ingresos totales | C6: =Ingresos!F5 -> 1,936.00 € | D6: =Ingresos!G5 -> 1,831.00 €
B7: Gastos totales | C7: =Gastos!G5 -> 1,145.00 € | D7: =Gastos!H5 -> 395.00 €
B8: Beneficio total (o pérdida) | C8: =C6-C7 -> 791.00 € | D8: =D6-D7 -> 1,436.00 €
A9: El gráfico de columnas agrupadas con la comparación entre las cantidades real y estimado de gastos totales e ingresos totales se encuentra en la celda a la derecha. | B9: El gráfico de columnas agrupadas con la comparación entre las cantidades real y estimado de gastos totales e ingresos totales se encuentra en esta celda.
